fUSD/lending_fUSD_20250313
["ID","MTS","AMOUNT","RATE_DAILY","PERIOD"]
[356054028,1741866640468,-475.05,0.000286,31]
[356054029,1741866640477,-424.64203579,0.000286,31]
[356054036,1741866643215,-50.40796421,0.000286,31]
[356054038,1741866643224,-475.05,0.000286,31]
[356054040,1741866643234,-475.05,0.000286,31]
[356054041,1741866643244,-475.05,0.000286,31]
[356054043,1741866643253,-2303.4767658,0.000286,2]
[356054044,1741866643262,-183.33006084,0.00028609,2]
[356054046,1741866643272,-200.0,0.00028617,2]
[356054047,1741866643281,-150.0,0.00028624,2]
[356054048,1741866643290,-201.89690782,0.0002865,5]
[356054049,1741866643300,-150.0,0.00028662,2]
[356054050,1741866643309,-150.0,0.00028666,2]
[356054051,1741866643320,-1000.0,0.00028669,2]
[356054053,1741866643331,-500.36393608,0.00028673,5]
[356054055,1741866643341,-162.66051016,0.00028673,5]
[356054057,1741866643350,-500.0,0.0002869,2]
[356054059,1741866643360,-500.0,0.0002869,2]
[356054060,1741866643370,-500.0,0.0002869,2]
[356054061,1741866643379,-500.0,0.0002869,2]
[356054062,1741866643389,-500.0,0.0002869,2]
[356054063,1741866643399,-500.0,0.0002869,2]
[356054064,1741866643409,-500.0,0.0002869,2]
[356054065,1741866643418,-500.0,0.0002869,2]
[356054066,1741866643427,-500.0,0.0002869,2]
[356054067,1741866643437,-500.0,0.0002869,2]
[356054068,1741866643447,-161.53965,0.0002869,42]
[356054069,1741866643457,-129367.660024,0.0002869,3]
[356054070,1741866643467,-20830.2104,0.00028691,3]
[356054071,1741866643477,-1348.0,0.00028698,2]
[356054072,1741866643487,-151.51252793,0.000287,2]
[356054073,1741866643496,-61812.86247372,0.000287,2]
[356054074,1741866643505,-500.0,0.000287,30]
[356054075,1741866643515,-500.0,0.000287,31]
[356054076,1741866643524,-500.0,0.000287,32]
[356054077,1741866643533,-10201.30035705,0.000287,2]
[356054078,1741866643559,-17839.22223483,0.000287,2]
[356054091,1741866646601,-756.78063558,0.000287,2]
[356054092,1741866646626,-1000.0,0.000287,2]
[356054093,1741866646637,-816.99559001,0.000287,2]
[356054094,1741866646649,-17760.2,0.000287,2]
[356054095,1741866646661,-1303.17693193,0.000287,2]
[356054096,1741866646672,-8312.48845889,0.000287,2]
[356054097,1741866646683,-602.0,0.000287,2]
[356054099,1741866646696,-2117.95137654,0.000287,2]
[356054100,1741866646707,-500.0,0.000287,2]
[356054123,1741867832279,-550.0,0.00013,2]
[356054124,1741867832289,-723.0239613,0.00025474,2]
[356054125,1741867832299,-683.39,0.00025574,2]
[356054126,1741867832310,-723.02396128,0.00026371,2]
[356054127,1741867832321,-198.22,0.00027202,120]
[356054128,1741867832330,-172.68,0.00027227,2]
[356054129,1741867832340,-250.0,0.00027265,2]
[356054130,1741867832350,-723.02396128,0.00027268,2]
[356054131,1741867832359,-1000.0,0.00027269,2]
[356054132,1741867832369,-23249.78116593,0.00027289,2]
[356054133,1741867832385,-650.21883407,0.00027289,2]
[356054134,1741867832395,-150.0,0.00027368,2]
[356054135,1741867832404,-1000.0,0.00027465,2]
[356054136,1741867832414,-210.0505875,0.000275,30]
[356054137,1741867832424,-2251.69,0.0002756,2]
[356054138,1741867832434,-200.0,0.00027608,2]
[356054139,1741867832445,-150.0,0.00027663,2]
[356054140,1741867832709,-219.86,0.00027707,120]
[356054141,1741867832763,-192.01363086,0.00027815,30]
[356054142,1741867832776,-11.26636914,0.00027815,30]
[356054143,1741867832786,-645.98250501,0.00027837,2]
[356054144,1741867832803,-641.01749499,0.00027837,2]
[356054145,1741867832812,-683.39,0.00027838,2]
[356054146,1741867832822,-3000.0,0.000279,2]
[356054147,1741867832833,-201.89690782,0.000279,4]
[356054148,1741867832844,-1287.0,0.00028124,2]
[356054149,1741867832854,-177.9901854,0.00028125,4]
[356054150,1741867832864,-1287.0,0.00028411,2]
[356054151,1741867832874,-150.0,0.00028518,2]
[356054152,1741867832883,-183.38397436,0.00028525,2]
[356054153,1741867832893,-150.0,0.00028579,2]
[356054154,1741867832903,-738.32143743,0.0002858,2]
[356054155,1741867832915,-756.79311258,0.0002858,2]
[356054156,1741867832927,-8372.41120195,0.0002858,2]
[356054160,1741867838206,-294.75802627,0.0002858,2]
[356054161,1741867838255,-252.35315091,0.0002858,2]
[356054162,1741867838267,-1943.46898318,0.0002858,2]
[356054163,1741867838280,-13002.84870973,0.0002858,2]
[356054164,1741867838308,-11411.60428485,0.0002858,2]
[356054165,1741867838318,-12324.5477,0.0002859,2]
[356054166,1741867838327,-150.0,0.000286,2]
[356054167,1741867838337,-2149.91164808,0.000286,2]
[356054168,1741867838346,-399.08,0.000286,31]
[356054169,1741867838356,-399.08,0.000286,31]
[356054170,1741867838366,-399.08,0.000286,31]
[356054171,1741867838375,-399.08,0.000286,31]
[356054172,1741867838385,-399.08,0.000286,31]
[356054173,1741867838395,-399.08,0.000286,31]
[356054174,1741867838404,-399.08,0.000286,31]
[356054175,1741867838413,-399.08,0.000286,31]
[356054176,1741867838423,-399.08,0.000286,31]
[356054177,1741867838432,-399.08,0.000286,31]
[356054178,1741867838443,-399.08,0.000286,31]
[356054179,1741867838453,-399.08,0.000286,31]
[356054180,1741867838463,-399.08,0.000286,31]
[356054182,1741867838472,-399.08,0.000286,31]
[356054184,1741867838482,-399.08,0.000286,31]
[356054186,1741867838491,-399.08,0.000286,31]
[356054188,1741867838501,-150.0,0.0002864,2]
[356054190,1741867838511,-150.0,0.00028643,2]
[356054192,1741867838520,-1037.57,0.00028667,20]
[356054194,1741867838530,-150.0,0.00028688,2]
[356054196,1741867838540,-6227.40524966,0.00028689,2]
[356054198,1741867838549,-6227.40524966,0.00028689,2]
[356054199,1741867838559,-6227.40524966,0.00028689,2]
[356054201,1741867838569,-6227.40524966,0.00028689,2]
[356054202,1741867838578,-6227.40524966,0.00028689,2]
[356054204,1741867838588,-6227.40524966,0.00028689,2]
[356054205,1741867838597,-836.85812407,0.00028689,2]
[356054206,1741867838609,-746.5600371,0.00028689,2]
[356054207,1741867838621,-2012.6,0.00028689,2]
[356054208,1741867838633,-2631.38708849,0.00028689,2]
[356054209,1741867838643,-2474.63946275,0.00028689,2]
[356054211,1741867840308,-508.03788187,0.00028689,2]
[356054212,1741867840320,-482.30682496,0.00028689,2]
[356054213,1741867840463,-688.9090029,0.00028689,2]
[356054222,1741867843295,-2073.51207718,0.00028689,2]
[356054223,1741867843305,-6227.40524966,0.00028689,2]
[356054224,1741867843315,-6227.40524966,0.00028689,2]
[356054225,1741867843325,-38684.48315857,0.0002869,3]
[356054226,1741867843401,-699.5899999,0.0002869,3]
[356054227,1741867843412,-424.49932413,0.0002869,3]
[356054228,1741867843455,-463.61452736,0.0002869,3]
[356054229,1741867843468,-5434.32,0.0002869,3]
[356054230,1741867843510,-968.21183023,0.0002869,3]
[356054232,1741867846243,-4162.1076,0.0002869,3]
[356054233,1741867846400,-1248.41096331,0.0002869,3]
[356054234,1741867846410,-151.0,0.00028693,7]
[356054235,1741867846420,-7628.88903669,0.00028693,3]
[356054236,1741867846431,-681.184,0.00028693,3]
[356054288,1741869031651,-550.0,0.00013,2]
[356054289,1741869031666,-229.51538826,0.00016145,2]
[356054290,1741869031677,-150.0,0.0001776,2]
[356054291,1741869031687,-927.105,0.0002361,4]
[356054292,1741869031697,-11449.33143603,0.0002488,7]
[356054293,1741869031706,-201.89690782,0.000249,4]
[356054294,1741869031716,-9756.0,0.00025,30]
[356054295,1741869031726,-689.15,0.00025488,2]
[356054296,1741869031736,-888.61,0.00026849,2]
[356054297,1741869031747,-201.89690782,0.00027043,4]
[356054298,1741869031758,-304.91,0.00027065,120]
[356054299,1741869031768,-10691.09,0.00027065,2]
[356054300,1741869031779,-1807.86,0.00027065,10]
[356054301,1741869031789,-250.0,0.00027137,2]
[356054302,1741869031799,-172.68,0.0002714,2]
[356054303,1741869031810,-150.99,0.0002714,2]
[356054304,1741869031820,-200.0,0.00027464,2]
[356054305,1741869031831,-1000.0,0.00027479,2]
[356054306,1741869031841,-150.0,0.00027649,2]
[356054307,1741869031851,-165.07,0.00027662,2]
[356054308,1741869031861,-163.89,0.00027728,2]
[356054309,1741869031871,-169.23,0.00027731,2]
[356054310,1741869031881,-689.15,0.00027752,2]
[356054311,1741869031891,-186.34,0.00027752,30]
[356054312,1741869031901,-177.9901854,0.00028125,4]
[356054313,1741869031916,-345.0,0.00028125,2]
[356054314,1741869031927,-14128.9568,0.000284,2]
[356054315,1741869031936,-163.89,0.00028421,2]
[356054316,1741869031947,-204.60110738,0.000285,2]
[356054317,1741869031957,-62665.03182281,0.000285,2]
[356054318,1741869031969,-174535.3891524,0.000285,2]
[356054319,1741869031980,-150.39424958,0.000285,2]
[356054320,1741869031991,-150.0,0.00028523,2]
[356054321,1741869032001,-150.39424957,0.00028527,2]
[356054322,1741869032011,-264.17504187,0.00028543,2]
[356054323,1741869032022,-150.39424957,0.00028555,2]
[356054324,1741869032032,-150.0,0.00028559,2]
[356054325,1741869032043,-151.04408838,0.00028573,2]
[356054326,1741869032053,-2006.58420494,0.00028579,2]
[356054327,1741869032064,-150.39424957,0.00028582,2]
[356054328,1741869032074,-300.0,0.00028583,2]
[356054329,1741869032087,-500.0,0.00028587,18]
[356054330,1741869032099,-500.0,0.00028587,18]
[356054331,1741869032110,-500.0,0.00028587,18]
[356054332,1741869032120,-500.0,0.00028587,18]
[356054333,1741869032129,-500.0,0.00028587,18]
[356054334,1741869032139,-500.0,0.00028587,18]
[356054335,1741869032151,-500.0,0.00028587,18]
[356054336,1741869032166,-25897.9374868,0.00028589,2]
[356054337,1741869032176,-523.6445,0.0002859,2]
[356054338,1741869032186,-150.0,0.00028597,2]
[356054339,1741869032196,-967.2,0.00028598,18]
[356054340,1741869032206,-860.16,0.00028598,18]
[356054341,1741869032216,-1617.53,0.00028598,18]
[356054342,1741869032226,-706.6,0.00028598,18]
[356054343,1741869032238,-1261.77,0.00028598,18]
[356054344,1741869032248,-2630.86,0.00028598,18]
[356054345,1741869032258,-2425.94,0.00028598,18]
[356054346,1741869032268,-500.0,0.00028598,18]
[356054347,1741869032278,-2754.88,0.00028598,18]
[356054348,1741869032287,-2086.3,0.00028598,18]
[356054349,1741869032297,-1254.59,0.00028598,18]
[356054350,1741869032306,-208.77334189,0.00028598,18]
[356054351,1741869032316,-1142.12,0.00028598,18]
[356054352,1741869032326,-586.36,0.00028598,18]
[356054353,1741869032335,-1780.97,0.00028598,18]
[356054354,1741869032345,-819.77,0.00028598,18]
[356054355,1741869032355,-500.0,0.00028598,18]
[356054356,1741869032365,-500.0,0.00028598,18]
[356054357,1741869032374,-1846.72,0.00028598,18]
[356054358,1741869032384,-976.13,0.00028598,18]
[356054359,1741869032393,-500.0,0.00028598,18]
[356054360,1741869032403,-983.74,0.00028598,18]
[356054361,1741869032419,-500.0,0.00028598,18]
[356054362,1741869032429,-722.08,0.00028598,18]
[356054363,1741869032438,-2131.6,0.00028598,18]
[356054364,1741869032448,-500.0,0.00028598,18]
[356054365,1741869032459,-40618.70663652,0.00028599,3]
[356054366,1741869032472,-4145.51594692,0.00028599,3]
[356054367,1741869032498,-853.33637155,0.00028599,3]
[356054368,1741869032516,-1114.16668528,0.00028599,3]
[356054369,1741869036303,-500.0,0.00028587,18]
[356054370,1741869036313,-620.25,0.00028587,18]
[356054371,1741869036324,-273.70799304,0.00028587,18]
[356054372,1741869036333,-500.0,0.00028598,18]
[356054373,1741869036343,-1651.95,0.00028598,18]
[356054374,1741869036353,-500.0,0.00028598,18]
[356054375,1741869036364,-136.50749837,0.00028599,3]
[356054385,1741869036455,-438.46753149,0.00028599,3]
[356054418,1741869037479,-3337.5756359,0.00016145,2]
[356054419,1741869037489,-500.0,0.00028587,18]
[356054420,1741869037500,-10224.39234405,0.00028599,3]
[356054421,1741869037540,-2686.84218873,0.00028599,3]
[356054422,1741869037552,-317.30410069,0.00028599,3]
[356054423,1741869037564,-1295.2436964,0.00028599,3]
[356054424,1741869037574,-281.455304,0.00028599,7]
[356054425,1741869037584,-150.0,0.000286,2]
[356054426,1741869037595,-4468.42,0.000286,30]
[356054427,1741869037605,-331.91,0.000286,31]
[356054428,1741869037615,-331.91,0.000286,31]
[356054429,1741869037624,-331.91,0.000286,31]
[356054430,1741869037634,-331.91,0.000286,31]
[356054431,1741869037644,-331.91,0.000286,31]
[356054432,1741869037654,-331.91,0.000286,31]
[356054433,1741869037663,-331.91,0.000286,31]
[356054434,1741869037677,-331.91,0.000286,31]
[356054435,1741869037687,-331.91,0.000286,31]
[356054436,1741869037697,-331.91,0.000286,31]
[356054437,1741869037706,-331.91,0.000286,31]
[356054438,1741869037716,-331.91,0.000286,31]
[356054439,1741869037726,-331.91,0.000286,31]
[356054440,1741869037736,-331.91,0.000286,31]
[356054441,1741869037746,-331.91,0.000286,31]
[356054442,1741869037756,-331.91,0.000286,31]
[356054443,1741869037765,-150.39424957,0.00028609,2]
[356054444,1741869037775,-150.39424957,0.00028636,2]
[356054445,1741869037784,-150.0,0.00028648,2]
[356054446,1741869037797,-150.0,0.00028648,2]
[356054447,1741869037807,-150.39424957,0.00028664,2]
[356054448,1741869037816,-150.0,0.00028666,2]
[356054449,1741869037826,-4221.78829433,0.00028678,2]
[356054450,1741869037839,-281.78311804,0.00028678,2]
[356054451,1741869037850,-4110.04529917,0.00028678,2]
[356054452,1741869037866,-289.18728201,0.00028678,2]
[356054453,1741869037878,-16995.13349325,0.00028678,2]
[356054454,1741869037888,-151.51,0.00028678,2]
[356054455,1741869037898,-500.0,0.00028678,18]
[356054456,1741869037908,-500.0,0.00028678,18]
[356054457,1741869037918,-500.0,0.00028678,18]
[356054458,1741869037927,-500.0,0.00028678,18]
[356054459,1741869037936,-500.0,0.00028678,18]
[356054460,1741869037946,-500.0,0.00028678,18]
[356054461,1741869037955,-500.0,0.00028678,18]
[356054462,1741869037965,-620.25,0.00028678,18]
[356054463,1741869037975,-500.0,0.00028678,18]
[356054465,1741869037984,-12535.51143521,0.00028679,2]
[356054467,1741869037996,-654.06454835,0.00028679,2]
[356054468,1741869038016,-330.30015207,0.00028679,2]
[356054481,1741869039612,-501.20793295,0.00028598,18]
[356054482,1741869039623,-55.85206705,0.00028679,2]
[356054483,1741869039738,-268.92,0.00028679,2]
[356054484,1741869039808,-4090.88423559,0.00028679,2]
[356054485,1741869039819,-613.07216184,0.00028679,2]
[356054486,1741869040020,-7349.33288669,0.00028679,2]
[356054487,1741869040031,-151.51,0.00028679,2]
[356054488,1741869040040,-25897.9374868,0.00028679,2]
[356054489,1741869040050,-151.0,0.0002868,7]
[356054490,1741869040060,-8375.22311325,0.00028682,2]
[356054540,1741869044316,-500.0,0.00028587,18]
[356054541,1741869044326,-500.0,0.00028678,18]
[356054542,1741869044336,-1266.36231896,0.00028682,2]
[356054548,1741869045666,-1828.83,0.00028598,18]
[356054549,1741869045677,-3766.66,0.00028598,18]
[356054550,1741869045691,-16256.35205459,0.00028682,2]
[356054551,1741869045701,-967.2,0.00028687,18]
[356054552,1741869045711,-1617.53,0.00028687,18]
[356054553,1741869045721,-706.6,0.00028687,18]
[356054554,1741869045731,-2630.86,0.00028687,18]
[356054555,1741869045740,-500.0,0.00028687,18]
[356054556,1741869045749,-2754.88,0.00028687,18]
[356054557,1741869045759,-2086.3,0.00028687,18]
[356054558,1741869045768,-308.74777606,0.00028687,18]
[356054562,1741869045949,-945.84222394,0.00028687,18]
[356054564,1741869045958,-1142.12,0.00028687,18]
[356054565,1741869045967,-91.8287468,0.00028687,18]
[356054592,1741870231694,-576.66248992,0.00019355,2]
[356054593,1741870231829,-324.80493377,0.00019355,2]
[356054594,1741870231840,-211.53257631,0.00019355,2]
[356054595,1741870231850,-549.53742369,0.0002002,2]
[356054596,1741870231928,-0.46257631,0.0002002,2]
[356054597,1741870231938,-558.34248992,0.00021574,2]
[356054598,1741870231950,-269.7409756,0.00021574,2]
[356054599,1741870231959,-550.0,0.00022934,2]
[356054600,1741870231969,-500.0,0.0002388,2]
[356054601,1741870231978,-1817.83981244,0.0002488,7]
[356054602,1741870231988,-500.0,0.00024976,7]
[356054603,1741870231997,-694.9,0.00025145,2]
[356054604,1741870232007,-250.0,0.00025574,2]
[356054605,1741870232016,-299.99,0.00025615,7]
[356054606,1741870232026,-300.0,0.00025615,2]
[356054607,1741870232036,-208.05417587,0.00025615,10]
[356054608,1741870232046,-150.0,0.00025616,2]
[356054609,1741870232056,-2231.18,0.00025616,2]
[356054610,1741870232066,-499.99,0.00025616,2]
[356054611,1741870232076,-3622.43,0.00025616,2]
[356054612,1741870232086,-150.99,0.00025616,2]
[356054613,1741870232095,-9197.12,0.00025616,2]
[356054614,1741870232105,-469.99331827,0.00025656,2]
[356054615,1741870232114,-550.0,0.0002581,2]
[356054616,1741870232124,-201.89690782,0.000259,4]
[356054617,1741870232133,-151.04408838,0.00026056,2]
[356054618,1741870232143,-945.0,0.00026071,2]
[356054619,1741870232152,-500.0,0.00026072,7]
[356054620,1741870232162,-500.0,0.0002662,7]
[356054622,1741870232172,-17170.28,0.00026642,2]
[356054624,1741870232181,-163.91,0.00026651,2]
[356054625,1741870232190,-170.81,0.00026696,30]
[356054626,1741870232199,-172.68,0.00026768,2]
[356054627,1741870232208,-250.0,0.00026826,2]
[356054628,1741870232218,-665.04,0.00026847,2]
[356054629,1741870232228,-296.52,0.00026849,2]
[356054630,1741870232238,-323.66,0.00026863,120]
[356054631,1741870232248,-1000.0,0.00026865,2]
[356054632,1741870232259,-301.02,0.000269,2]
[356054633,1741870232269,-169.95,0.0002699,2]
[356054634,1741870232286,-1000.0,0.00027005,2]
[356054636,1741870232296,-150.0,0.00027023,7]
[356054638,1741870232306,-150.0,0.00027035,2]
[356054640,1741870232316,-200.0,0.00027061,2]
[356054642,1741870232326,-694.9,0.00027409,2]
[356054644,1741870232336,-1660.4282038,0.00027604,2]
[356054646,1741870232345,-232.89,0.00027667,2]
[356054648,1741870232355,-861.15,0.00027694,2]
[356054650,1741870232365,-289.23885332,0.00027698,2]
[356054651,1741870232375,-500.0,0.00027716,7]
[356054652,1741870232386,-420.0,0.00027733,2]
[356054653,1741870232396,-232.89,0.0002774,2]
[356054654,1741870232406,-1304.703,0.00027788,17]
[356054655,1741870232416,-232.89,0.00027813,2]
[356054656,1741870232427,-171.59,0.00027815,2]
[356054657,1741870232437,-1246.0,0.00027848,2]
[356054658,1741870232447,-232.89,0.00027886,2]
[356054659,1741870232457,-3000.0,0.000279,2]
[356054660,1741870232468,-232.89,0.00027958,2]
[356054661,1741870232479,-163.91,0.00027984,2]
[356054662,1741870232490,-232.89,0.00028031,2]
[356054663,1741870232502,-296.7691,0.00028035,2]
[356054664,1741870232512,-232.89,0.00028104,2]
[356054665,1741870232522,-177.9901854,0.00028125,4]
[356054666,1741870232537,-1246.0,0.00028135,2]
[356054667,1741870232546,-2029.68213699,0.00028165,2]
[356054668,1741870232557,-232.89,0.00028177,2]
[356054669,1741870232567,-289.23885332,0.00028209,2]
[356054670,1741870232577,-1446.8543,0.00028219,10]
[356054671,1741870232587,-232.89,0.0002825,2]
[356054672,1741870232596,-10105.59704324,0.00028254,2]
[356054673,1741870232605,-500.0,0.00028264,7]
[356054674,1741870232615,-201.89690782,0.00028317,5]
[356054675,1741870232624,-232.89,0.00028323,2]
[356054676,1741870232633,-289.23885332,0.00028384,2]
[356054677,1741870232642,-232.89,0.00028395,2]
[356054678,1741870232652,-1246.0,0.00028422,2]
[356054679,1741870232661,-232.89,0.00028468,2]
[356054680,1741870232670,-256.29341493,0.00028477,2]
[356054681,1741870232680,-256.29341492,0.00028482,2]
[356054682,1741870232689,-313.5533,0.00028487,2]
[356054683,1741870232699,-1339.7216,0.00028487,2]
[356054684,1741870232708,-4345.3832,0.00028487,2]
[356054685,1741870232717,-267.5407,0.00028487,2]
[356054686,1741870232726,-401.8294,0.00028487,2]
[356054687,1741870232735,-256.29341492,0.00028488,2]
[356054688,1741870232745,-256.29341492,0.00028493,2]
[356054689,1741870232755,-256.29341492,0.00028498,2]
[356054690,1741870232764,-256.29341492,0.00028503,2]
[356054691,1741870232773,-150.0,0.00028505,2]
[356054692,1741870232786,-256.29341492,0.00028509,2]
[356054693,1741870232796,-256.29341492,0.00028514,2]
[356054694,1741870232805,-150.0,0.00028524,2]
[356054695,1741870232815,-232.89,0.00028541,2]
[356054696,1741870232824,-150.0,0.00028564,2]
[356054697,1741870232834,-170.8941859,0.00028573,5]
[356054698,1741870232843,-278.37214161,0.00028573,5]
[356054699,1741870232852,-205.79645366,0.00028573,5]
[356054700,1741870232861,-420.63028397,0.00028573,5]
[356054701,1741870232871,-1552.16,0.00028576,18]
[356054702,1741870232880,-1209.19,0.00028576,18]
[356054703,1741870232889,-2324.86,0.00028576,18]
[356054704,1741870232898,-561.92,0.00028576,18]
[356054705,1741870232908,-785.61,0.00028576,18]
[356054706,1741870232917,-500.0,0.00028576,18]
[356054707,1741870232927,-1055.8,0.00028576,18]
[356054708,1741870232936,-500.0,0.00028576,18]
[356054709,1741870232946,-1769.77,0.00028576,18]
[356054710,1741870232956,-500.0,0.00028576,18]
[356054711,1741870232965,-500.0,0.00028576,18]
[356054712,1741870232974,-500.0,0.00028576,18]
[356054713,1741870232983,-568.56,0.00028576,18]
[356054714,1741870232993,-501.66127032,0.00028576,18]
[356054715,1741870233003,-2042.78,0.00028576,18]
[356054716,1741870233012,-5863.54777801,0.00028576,2]
[356054717,1741870233033,-349.97130778,0.00028576,2]
[356054718,1741870233054,-2002.65164984,0.00028576,2]
[356054719,1741870233075,-780.09523378,0.00028576,2]
[356054725,1741870237646,-256.29341492,0.00028519,2]
[356054726,1741870237655,-13628.72774624,0.00028576,2]
[356054727,1741870237709,-1697.17293,0.00028576,2]
[356054728,1741870237765,-805.58957469,0.00028576,2]
[356054729,1741870237779,-337.88792366,0.00028576,2]
[356054730,1741870237791,-151.51,0.00028576,2]
[356054731,1741870237801,-25465.644144,0.00028577,2]
[356054732,1741870237810,-14795.40193234,0.00028577,2]
[356054733,1741870237827,-8355.461751,0.00028577,2]
[356054734,1741870237841,-36008.590824,0.00028577,2]
[356054746,1741870239687,-256.29341492,0.00028524,2]
[356054747,1741870239697,-231.30250888,0.00028576,18]
[356054748,1741870239797,-268.69749112,0.00028576,18]
[356054749,1741870239807,-1681.77240283,0.00028577,2]
[356054750,1741870239819,-8389.55831282,0.00028577,2]
[356054751,1741870239908,-408.32568278,0.00028577,2]
[356054752,1741870239920,-27658.89120261,0.00028577,2]
[356054753,1741870240021,-23100.09863757,0.00028577,2]
[356054754,1741870240040,-999.5,0.00028577,2]
[356054768,1741870245848,-566.25,0.00016863,2]
[356054769,1741870245860,-898.11134631,0.00016863,2]
[356054770,1741870245881,-4525.74357093,0.00016863,2]
[356054771,1741870245891,-256.29341492,0.0002853,2]
[356054772,1741870245900,-2022.38,0.00028576,18]
[356054773,1741870245910,-56861.90826205,0.00028577,2]
[356054774,1741870245919,-88351.717144,0.00028577,2]
[356054775,1741870245929,-1552.16,0.00028578,18]
[356054776,1741870245938,-1209.19,0.00028578,18]
[356054777,1741870245947,-2324.86,0.00028578,18]
[356054778,1741870245956,-561.92,0.00028578,18]
[356054779,1741870245965,-785.61,0.00028578,18]
[356054780,1741870245975,-500.0,0.00028578,18]
[356054781,1741870245984,-1055.8,0.00028578,18]
[356054782,1741870245993,-500.0,0.00028578,18]
[356054783,1741870246002,-1769.77,0.00028578,18]
[356054784,1741870246011,-500.0,0.00028578,18]
[356054785,1741870246021,-500.0,0.00028578,18]
[356054786,1741870246031,-500.0,0.00028578,18]
[356054789,1741870246042,-568.56,0.00028578,18]
[356054790,1741870246052,-2042.78,0.00028578,18]
[356054792,1741870246061,-500.0,0.00028578,18]
[356054795,1741870246071,-2022.38,0.00028578,18]
[356054797,1741870246081,-50931.2882881,0.00028578,2]
[356054799,1741870246090,-44175.858572,0.00028578,2]
[356054801,1741870246100,-45278.76178862,0.00028585,2]
[356054802,1741870246109,-204.60110738,0.00028586,2]
[356054804,1741870246119,-500.0,0.00028586,18]
[356054806,1741870246128,-1002.19,0.00028586,18]
[356054809,1741870246138,-841.93,0.00028586,18]
[356054810,1741870246149,-528.93,0.00028586,18]
[356054811,1741870246158,-852.85,0.00028586,18]
[356054812,1741870246168,-553.4,0.00028586,18]
[356054813,1741870246178,-910.15,0.00028586,18]
[356054814,1741870246187,-527.39,0.00028586,18]
[356054815,1741870246198,-500.0,0.00028586,18]
[356054816,1741870246215,-570.25,0.00028586,18]
[356054817,1741870246230,-500.0,0.00028586,18]
[356054818,1741870246240,-500.0,0.00028586,18]
[356054819,1741870246250,-500.0,0.00028586,18]
[356054820,1741870246260,-500.0,0.00028586,18]
[356054821,1741870246270,-769.82,0.00028586,18]
[356054822,1741870246280,-328.38640324,0.00028586,18]
[356054823,1741870246292,-758.52,0.00028586,18]
[356054824,1741870246301,-500.0,0.00028586,18]
[356054825,1741870246310,-500.0,0.00028586,18]
[356054826,1741870246323,-215.26243845,0.00028586,18]
[356054827,1741870246345,-294.96756155,0.00028586,18]
[356054828,1741870246354,-382.24843845,0.00028586,18]
[356054829,1741870246375,-117.75156155,0.00028586,18]
[356054830,1741870246385,-541.37,0.00028586,18]
[356054831,1741870246395,-170.03743845,0.00028586,18]
[356054832,1741870246406,-329.96256155,0.00028586,18]
[356054833,1741870246415,-500.0,0.00028586,18]
[356054834,1741870246425,-500.0,0.00028586,18]
[356054835,1741870246435,-500.0,0.00028586,18]
[356054836,1741870246444,-402.10745725,0.00028586,18]
[356054847,1741871431903,-550.0,0.00013,2]
[356054848,1741871431913,-150.0,0.000143,2]
[356054849,1741871431924,-500.0,0.00021479,2]
[356054850,1741871431933,-500.0,0.00024976,7]
[356054851,1741871431943,-500.0,0.00024976,7]